bitfinex-derivatives/quotes_BTCF0:USTF0_20250106
["timestamp","ask_amount","ask_price","bid_price","bid_amount"]
[1736121600151,0.014,98385.0,98384.0,0.001]
[1736121600649,0.00108629,98385.0,98384.0,0.0983]
[1736121600834,0.00108629,98385.0,98384.0,0.4591]
[1736121602644,0.3608,98415.0,98384.0,0.4591]
[1736121602848,0.342691,98404.0,98395.0,0.3608]
[1736121603047,0.342691,98404.0,98396.0,0.0487]
[1736121603639,0.3608,98415.0,98396.0,0.0487]
[1736121603945,0.1589205,98404.0,98396.0,0.0487]
[1736121604349,0.1559205,98404.0,98396.0,0.0497]
[1736121605344,0.004,98404.0,98398.0,0.30448076]
[1736121605745,0.004,98404.0,98403.0,0.3608]
[1736121605942,0.006,98404.0,98403.0,0.3608]
[1736121606545,0.1519205,98427.0,98403.0,0.6608]
[1736121606750,0.1519205,98427.0,98420.0,0.3608]
[1736121606949,0.1519205,98427.0,98421.0,0.0477]
[1736121607148,0.12294646,98434.0,98426.0,0.3608]
[1736121607348,0.06603891,98434.0,98432.0,0.3608]
[1736121607959,0.3608,98454.0,98432.0,0.3608]
[1736121608258,0.3608,98465.0,98453.0,0.3608]
[1736121608461,0.2126887,98477.0,98464.0,0.3608]
[1736121608664,0.2126887,98477.0,98473.0,0.3608]
[1736121609459,0.2126887,98477.0,98464.0,0.3608]
[1736121609664,0.3608,98466.0,98454.0,0.18200719]
[1736121609856,0.3608,98456.0,98454.0,0.18200719]
[1736121610058,0.049,98455.0,98454.0,0.18200719]
[1736121610564,0.009,98477.0,98454.0,0.5835558]
[1736121610773,0.005,98477.0,98468.0,0.3608]
[1736121611153,0.4098,98499.0,98476.0,0.3608]
[1736121611356,0.1,98500.0,98497.0,0.3608]
[1736121611556,0.3608,98498.0,98477.0,0.3608]
[1736121611767,0.3608,98498.0,98477.0,0.33479999]
[1736121612266,0.3608,98489.0,98468.0,0.0368565]
[1736121612456,0.3608,98489.0,98465.0,0.3608]
[1736121612457,0.3608,98479.0,98465.0,0.3608]
[1736121612760,0.3608,98489.0,98465.0,0.3608]
[1736121612761,0.1,98500.0,98477.0,0.3608]
[1736121613157,0.1,98500.0,98478.0,0.151245]
[1736121613352,0.002,98498.0,98492.0,0.3608]
[1736121613862,0.3608,98530.0,98493.0,0.17344258]
[1736121614057,0.3608,98530.0,98513.0,0.3608]
[1736121614654,0.3608,98530.0,98514.0,0.11674068]
[1736121615155,0.3608,98542.0,98525.0,0.3608]
[1736121615465,0.3608,98542.0,98526.0,0.50072]
[1736121615860,0.3608,98542.0,98526.0,0.71701849]
[1736121616068,0.3608,98542.0,98526.0,0.50072]
[1736121616366,0.3678,98542.0,98527.0,0.21270985]
[1736121616567,0.007,98542.0,98541.0,0.3608]
[1736121616765,0.3608,98552.0,98527.0,0.10148832]
[1736121616960,0.007,98542.0,98526.0,0.52731999]
[1736121617155,0.007,98542.0,98526.0,0.52591999]
[1736121617354,0.3608,98552.0,98528.0,0.10148781]
[1736121617563,0.007,98542.0,98527.0,0.001]
[1736121618279,0.05088,98783.0,98527.0,0.001]
[1736121618280,0.3608,98561.0,98539.0,0.3608]
[1736121618470,0.3608,98561.0,98540.0,0.047]
[1736121618656,0.003,98542.0,98540.0,0.15905471]
[1736121618860,0.003,98542.0,98541.0,0.10147133]
[1736121619063,0.3608,98571.0,98541.0,0.10147133]
[1736121619265,0.3608,98571.0,98552.0,0.3608]
[1736121619665,0.002,98561.0,98553.0,0.11745708]
[1736121619972,0.008,98561.0,98553.0,0.21891657]
[1736121620162,0.008,98561.0,98554.0,0.5004]
[1736121620464,0.3688,98571.0,98554.0,0.60185949]
[1736121620669,0.3688,98571.0,98554.0,0.5004]
[1736121620964,0.3608,98557.0,98552.0,0.001]
[1736121622071,0.3608,98557.0,98540.0,0.5004]
[1736121622263,0.3608,98545.0,98540.0,0.5004]
[1736121622662,0.3608,98557.0,98540.0,0.5004]
[1736121623368,0.3608,98557.0,98540.0,0.5034]
[1736121623570,0.3608,98557.0,98541.0,0.10147905]
[1736121624672,0.3608,98568.0,98545.0,0.3608]
[1736121625069,0.3608,98568.0,98546.0,0.1688]
[1736121625266,0.3608,98568.0,98546.0,0.27027236]
[1736121625573,0.3608,98568.0,98558.0,0.3608]
[1736121626362,0.3608,98559.0,98545.0,0.3628]
[1736121626567,0.3608,98549.0,98546.0,0.001]
[1736121628175,0.3608,98549.0,98536.0,0.86104]
[1736121628380,0.3608,98549.0,98536.0,0.86244]
[1736121628574,0.3608,98549.0,98540.0,0.1014739]
[1736121629077,0.3608,98559.0,98546.0,0.001]
[1736121629670,0.3608,98559.0,98547.0,0.21503836]
[1736121630178,0.3608,98559.0,98548.0,0.1688]
[1736121630379,0.0455,98567.0,98566.0,0.045664]
[1736121630679,0.3608,98572.0,98571.0,0.045662]
[1736121631379,0.3608,98572.0,98563.0,0.045665]
[1736121631575,0.3608,98572.0,98555.0,0.3608]
[1736121631775,0.3608,98572.0,98557.0,0.045668]
[1736121632078,0.3608,98561.0,98557.0,0.045668]
[1736121632774,0.04567,98554.0,98543.0,0.00152206]
[1736121632979,0.3608,98544.0,98543.0,0.00152206]
[1736121634472,0.3608,98544.0,98537.0,0.50152]
[1736121634673,0.045677,98538.0,98537.0,0.50016]
[1736121634874,0.406477,98538.0,98537.0,0.19896]
[1736121635478,0.3608,98538.0,98512.0,0.00152272]
[1736121635680,0.3608,98513.0,98512.0,0.00152272]
[1736121635977,0.3609205,98513.0,98512.0,0.00152272]
[1736121636181,0.0001205,98513.0,98512.0,0.00152272]
[1736121636683,0.3609205,98513.0,98512.0,0.00152272]
[1736121637683,0.3609205,98513.0,98512.0,0.00352272]
[1736121638383,0.3609205,98513.0,98512.0,0.00452272]
[1736121638979,0.3609205,98513.0,98512.0,0.00852272]
[1736121639176,0.3609205,98513.0,98512.0,0.00552272]
[1736121639377,0.3609205,98513.0,98512.0,0.00752272]
[1736121640874,0.0001205,98513.0,98512.0,0.00652272]
[1736121641375,0.0001205,98513.0,98512.0,0.00252272]
[1736121641777,0.0001205,98513.0,98512.0,0.00452272]
[1736121641976,0.0001205,98513.0,98512.0,0.00352272]
[1736121642171,0.0001205,98513.0,98512.0,0.00852272]
[1736121642385,0.0001205,98513.0,98512.0,0.00752272]
[1736121644092,0.0001205,98513.0,98512.0,0.00852272]
[1736121644579,0.0001205,98513.0,98512.0,0.00452272]
[1736121644783,0.0001205,98513.0,98512.0,0.00352272]
[1736121645174,0.0001205,98513.0,98512.0,0.00252272]
[1736121645379,0.0001205,98513.0,98512.0,0.00552272]
[1736121645580,0.0001205,98513.0,98512.0,0.00652272]
[1736121645781,0.0001205,98513.0,98512.0,0.00352272]
[1736121646084,0.0001205,98513.0,98512.0,0.00852272]
[1736121646490,0.0001205,98513.0,98512.0,0.00452272]
[1736121647288,0.0001205,98513.0,98512.0,0.00352272]
[1736121647873,0.0001205,98513.0,98512.0,0.00252272]
[1736121648074,0.0001205,98513.0,98512.0,0.00752272]
[1736121648777,0.0001205,98513.0,98512.0,0.00552272]
[1736121649380,0.0001205,98513.0,98512.0,0.00952272]
[1736121652690,0.00017015,98513.0,98512.0,0.00952272]
[1736121654190,0.36097015,98513.0,98512.0,0.00952272]
[1736121655893,0.36097015,98513.0,98512.0,0.00752272]
[1736121656697,0.40665915,98513.0,98512.0,0.00752272]
[1736121657489,0.40665915,98513.0,98512.0,0.00652272]
[1736121657997,0.40665915,98513.0,98512.0,0.00452272]
[1736121658293,0.40665915,98513.0,98512.0,0.00352272]
[1736121661797,0.40665915,98513.0,98512.0,0.002]
[1736121668600,0.36097015,98513.0,98512.0,0.002]
[1736121669096,0.00017015,98513.0,98512.0,0.0517]
[1736121669300,0.00017015,98513.0,98512.0,0.29081409]
[1736121670506,0.36097015,98513.0,98512.0,0.28323788]
[1736121671609,0.00017015,98513.0,98512.0,0.28323788]
[1736121674206,0.36097015,98513.0,98512.0,0.28323788]
[1736121674407,0.3608,98521.0,98512.0,0.28323788]
[1736121674910,0.09105093,98527.0,98518.0,0.3608]
[1736121675217,0.09105093,98527.0,98522.0,0.045684]
[1736121675408,0.09105093,98527.0,98523.0,0.045684]
[1736121675612,0.09105093,98526.0,98524.0,0.045683]
[1736121676308,0.11920158,98531.0,98530.0,0.045681]
[1736121676509,0.0015225,98547.0,98536.0,0.045678]
[1736121676717,0.12140886,98544.0,98543.0,0.3608]
[1736121677516,0.12140886,98544.0,98534.0,0.0989358]
[1736121677704,0.045679,98536.0,98534.0,0.0989358]
[1736121677906,0.12140886,98544.0,98530.0,0.3608]
[1736121677907,0.045679,98535.0,98530.0,0.3608]
[1736121679315,0.045675,98542.0,98533.0,0.30366789]
[1736121680510,0.045676,98541.0,98539.0,0.24288915]
[1736121682116,0.045677,98540.0,98537.0,0.24288915]
[1736121683020,0.002,98541.0,98537.0,0.24288915]
[1736121683712,0.001,98540.0,98537.0,0.24288915]
[1736121684720,0.001,98541.0,98538.0,0.0454]
[1736121685310,0.001,98541.0,98538.0,0.091077]
[1736121685710,0.001,98541.0,98540.0,0.3608]
[1736121686011,0.3608,98555.0,98548.0,0.045673]
[1736121686210,0.3608,98555.0,98549.0,0.0453]
[1736121686410,0.00152244,98564.0,98551.0,0.3608]
[1736121686716,0.00152244,98564.0,98554.0,0.0989358]
[1736121687712,0.00552244,98564.0,98560.0,0.18190238]
[1736121687915,0.045666,98563.0,98560.0,0.18190238]
[1736121688723,0.045666,98563.0,98556.0,0.18190238]
[1736121689216,0.045667,98561.0,98556.0,0.18190238]
[1736121689421,0.045666,98563.0,98560.0,0.001]
[1736121690220,0.050666,98563.0,98560.0,0.001]
[1736121691017,0.045666,98563.0,98555.0,0.045669]
[1736121691218,0.050666,98563.0,98556.0,0.001]
[1736121691420,0.050666,98563.0,98556.0,0.046669]
[1736121691617,0.3608,98561.0,98553.0,0.18190238]
[1736121691924,0.3608,98561.0,98560.0,0.001]
[1736121691925,0.406467,98561.0,98560.0,0.001]
[1736121692215,0.406467,98561.0,98550.0,0.28083818]
[1736121692417,0.045671,98552.0,98550.0,0.28083818]
[1736121692612,0.045671,98552.0,98550.0,0.18190238]
[1736121693331,0.045672,98551.0,98547.0,0.045673]
[1736121694021,0.3608,98553.0,98542.0,0.28083818]
[1736121694217,0.045674,98547.0,98542.0,0.28083818]
[1736121695716,0.045674,98547.0,98543.0,0.18190238]
[1736121696319,0.047674,98547.0,98543.0,0.18190238]
[1736121697026,0.045674,98547.0,98543.0,0.18190238]
[1736121697328,0.047674,98547.0,98544.0,0.18190238]
[1736121698722,0.047674,98547.0,98544.0,0.18290238]
[1736121699428,0.048674,98547.0,98544.0,0.18290238]
[1736121699932,0.048674,98547.0,98544.0,0.001]
[1736121700324,0.003,98547.0,98544.0,0.001]
[1736121700522,0.045674,98546.0,98544.0,0.001]
[1736121702439,0.048674,98546.0,98544.0,0.001]
[1736121703322,0.048674,98546.0,98544.0,0.24369638]
[1736121704427,0.048674,98546.0,98544.0,0.001]
[1736121704936,0.048674,98546.0,98540.0,0.04719821]
[1736121706021,0.045674,98546.0,98540.0,0.04719821]
[1736121706826,0.045674,98546.0,98540.0,0.04819821]
[1736121707841,0.045674,98546.0,98541.0,0.30366789]
[1736121708345,0.045674,98546.0,98542.0,0.045675]
[1736121708926,0.0925,98552.0,98542.0,0.045675]
[1736121709139,0.0925,98552.0,98542.0,0.1446108]
[1736121709341,0.045672,98550.0,98542.0,0.40260369]
[1736121709537,0.045672,98550.0,98544.0,0.045674]
[1736121710430,0.045672,98550.0,98549.0,0.24304945]
[1736121711525,0.045672,98550.0,98547.0,0.045673]
[1736121712935,0.046672,98550.0,98547.0,0.045673]
[1736121713537,0.046672,98550.0,98542.0,0.0989358]
[1736121713740,0.045672,98550.0,98548.0,0.045673]
[1736121715437,0.3608,98562.0,98560.0,0.045667]
[1736121716533,0.3608,98562.0,98561.0,0.2429578]
[1736121717032,0.3628,98562.0,98561.0,0.2429578]
[1736121717234,0.002,98562.0,98561.0,0.2429578]
[1736121717439,0.3628,98562.0,98561.0,0.2429578]
[1736121717934,0.3628,98562.0,98561.0,0.2439578]
[1736121718338,0.3628,98562.0,98561.0,0.001]
[1736121718942,0.3864197,98562.0,98561.0,0.001]
[1736121719237,0.3874197,98562.0,98557.0,0.30366789]
[1736121719541,0.045668,98558.0,98557.0,0.30366789]
[1736121720042,0.3608,98560.0,98555.0,0.24298421]
[1736121720043,0.0508,98559.0,98555.0,0.24298421]
[1736121720247,0.092169,98557.0,98555.0,0.24298421]
[1736121720929,0.3465,98557.0,98550.0,0.30366789]
[1736121721133,0.045674,98545.0,98544.0,0.05336307]
[1736121721342,0.045676,98541.0,98540.0,0.00152221]
[1736121721529,0.045683,98526.0,98524.0,0.41844966]
[1736121722644,0.045683,98526.0,98521.0,0.045685]
[1736121723352,0.045683,98526.0,98523.0,0.045684]
[1736121723840,0.0478,98529.0,98523.0,0.045684]
[1736121724041,0.045683,98525.0,98523.0,0.045684]
[1736121724833,0.045683,98525.0,98523.0,0.049684]
[1736121726244,0.045683,98525.0,98523.0,0.052684]
[1736121727044,0.045683,98525.0,98523.0,0.007]
[1736121727239,0.045683,98525.0,98523.0,0.004]
[1736121727444,0.045683,98525.0,98523.0,0.007]
[1736121729549,0.045683,98525.0,98523.0,0.004]
[1736121729849,0.045683,98525.0,98523.0,0.007]
[1736121731951,0.045683,98525.0,98523.0,0.006]
[1736121732554,0.045683,98525.0,98523.0,0.005]
[1736121737657,0.3608,98545.0,98523.0,0.005]
[1736121737853,0.19768831,98543.0,98533.0,0.0989358]
[1736121738058,0.19768831,98543.0,98540.0,0.045676]
[1736121738255,0.19768831,98543.0,98541.0,0.045675]
[1736121738256,0.15201331,98543.0,98541.0,0.045675]
[1736121738464,0.00152264,98546.0,98543.0,0.045675]
[1736121738465,0.15201331,98544.0,98543.0,0.045675]
[1736121739562,0.001,98544.0,98543.0,0.045675]
[1736121739750,0.001,98544.0,98542.0,0.0463]
[1736121741456,0.04719664,98546.0,98542.0,0.0463]
[1736121742163,0.04719664,98546.0,98540.0,0.22802255]
[1736121742362,0.04719664,98546.0,98542.0,0.001]
[1736121742954,0.04719664,98546.0,98540.0,0.045676]
[1736121743158,0.04719664,98546.0,98542.0,0.001]
[1736121745664,0.045675,98543.0,98542.0,0.001]
[1736121748369,0.045676,98540.0,98537.0,0.3608]
[1736121750774,0.045676,98540.0,98536.0,0.045678]
[1736121750976,0.045676,98540.0,98537.0,0.001]
[1736121751872,0.045676,98540.0,98536.0,0.045678]
[1736121752072,0.045676,98540.0,98536.0,0.046678]
[1736121753486,0.045676,98540.0,98537.0,0.045677]
[1736121753781,0.3608,98545.0,98540.0,0.045676]
[1736121754078,0.00152264,98546.0,98538.0,0.3608]
[1736121754379,0.00152264,98546.0,98545.0,0.045674]
[1736121761588,0.04719664,98546.0,98542.0,0.18234655]
[1736121762380,0.04719664,98546.0,98542.0,0.22802155]
[1736121763686,0.04719664,98546.0,98544.0,0.18234655]
[1736121765182,0.04719664,98546.0,98542.0,0.045675]
[1736121765782,0.04719664,98546.0,98544.0,0.001]
[1736121767383,0.04719664,98546.0,98542.0,0.046675]
[1736121768094,0.04719664,98546.0,98542.0,0.045675]
[1736121768390,0.04719664,98546.0,98544.0,0.001]
[1736121768987,0.04719664,98546.0,98542.0,0.046675]
[1736121770194,0.00152264,98546.0,98544.0,0.045674]
[1736121770993,0.00152264,98546.0,98544.0,0.046674]
[1736121771684,0.04719564,98546.0,98544.0,0.001]
[1736121771889,0.045674,98545.0,98544.0,0.001]
[1736121772093,0.096874,98545.0,98544.0,0.001]
[1736121772784,0.148774,98545.0,98544.0,0.001]
[1736121773385,0.148774,98545.0,98542.0,0.18245787]
[1736121773386,0.045675,98543.0,98542.0,0.18245787]
[1736121773588,0.406475,98543.0,98542.0,0.18245787]
[1736121774493,0.406475,98543.0,98542.0,0.10445787]
[1736121774792,0.045679,98534.0,98533.0,0.0989358]
[1736121774991,0.045679,98534.0,98526.0,0.10445787]
[1736121774992,0.045682,98527.0,98526.0,0.10445787]
[1736121776791,0.045682,98527.0,98526.0,0.10845787]
[1736121776991,0.045682,98527.0,98526.0,0.004]
[1736121777994,0.045682,98527.0,98526.0,0.007]
[1736121784490,0.04568,98531.0,98526.0,0.007]
[1736121784697,0.045681,98530.0,98526.0,0.007]
[1736121785195,0.045681,98530.0,98526.0,0.052682]
[1736121785504,0.045681,98530.0,98527.0,0.045682]
[1736121785803,0.12163511,98538.0,98527.0,0.045682]
[1736121785997,0.12163511,98538.0,98528.0,0.0989358]
[1736121786504,0.045681,98530.0,98528.0,0.0989358]
[1736121786701,0.045681,98529.0,98527.0,0.045682]
[1736121787101,0.045681,98529.0,98527.0,0.049682]
[1736121787299,0.045681,98529.0,98528.0,0.002]
[1736121788105,0.045681,98529.0,98527.0,0.051682]
[1736121788606,0.045681,98529.0,98527.0,0.06885748]
[1736121788810,0.045681,98529.0,98528.0,0.003]
[1736121789708,0.045681,98529.0,98528.0,0.002]
[1736121790200,0.045681,98529.0,98528.0,0.005]
[1736121797603,0.48243511,98539.0,98528.0,0.005]
[1736121797912,0.15204389,98544.0,98529.0,0.17551866]
[1736121797913,0.09116927,98534.0,98529.0,0.17551866]
[1736121798207,0.09116927,98534.0,98529.0,0.0457]
[1736121798415,0.04568,98530.0,98529.0,0.0457]
[1736121799506,0.04568,98530.0,98529.0,0.0487]
[1736121799913,0.04568,98530.0,98529.0,0.003]
[1736121800214,0.42374579,98530.0,98529.0,0.003]
[1736121800507,0.045681,98528.0,98527.0,0.2429292]
[1736121800903,0.045682,98526.0,98525.0,0.2429292]
[1736121801100,0.406482,98526.0,98525.0,0.2429292]
[1736121802406,0.045689,98512.0,98510.0,0.09891759]
[1736121802601,0.406489,98511.0,98507.0,0.045691]
[1736121803415,0.406489,98511.0,98506.0,0.24445171]
[1736121803617,0.0912434,98508.0,98506.0,0.00152251]
[1736121803910,0.0912434,98508.0,98507.0,0.045691]
[1736121804210,0.0912434,98508.0,98507.0,0.048691]
[1736121804613,0.045689,98511.0,98507.0,0.048691]
[1736121804806,0.045689,98510.0,98507.0,0.048691]
[1736121805311,0.04569,98509.0,98507.0,0.048691]
[1736121806014,0.04569,98509.0,98507.0,0.003]
[1736121806222,0.04569,98509.0,98507.0,0.009]
[1736121806516,0.04569,98509.0,98507.0,0.006]
[1736121806715,0.04569,98509.0,98507.0,0.003]
[1736121807014,0.04569,98509.0,98507.0,0.009]
[1736121818413,0.04569,98509.0,98507.0,0.005]
[1736121818618,0.04569,98509.0,98507.0,0.004]
[1736121823515,0.04569,98509.0,98499.0,0.2429292]
[1736121823516,0.045694,98500.0,98499.0,0.2429292]
[1736121823723,0.406494,98500.0,98499.0,0.2429292]
[1736121824829,0.45587459,98500.0,98499.0,0.003]
[1736121825017,0.45587459,98500.0,98499.0,0.009]
[1736121825930,0.406494,98500.0,98499.0,0.009]
[1736121827031,0.3608,98500.0,98499.0,0.009]
[1736121827326,0.12145902,98501.0,98500.0,0.045694]
[1736121827923,0.12145902,98501.0,98499.0,0.05652]
[1736121828123,0.048694,98500.0,98499.0,0.00912]
[1736121828323,0.050694,98500.0,98499.0,0.00812]
[1736121828722,0.047694,98500.0,98499.0,0.00812]
[1736121828922,0.045694,98500.0,98499.0,0.00812]
[1736121830032,0.13679339,98500.0,98499.0,0.00812]
[1736121830427,0.13779339,98500.0,98499.0,0.00812]
[1736121831131,0.13679339,98500.0,98499.0,0.00812]
[1736121831328,0.13779339,98500.0,98499.0,0.00812]
[1736121831535,0.046694,98500.0,98499.0,0.00812]
[1736121834027,0.1378676,98500.0,98499.0,0.00812]
[1736121834927,0.1459876,98500.0,98499.0,0.00812]
[1736121835438,0.054814,98500.0,98499.0,0.00812]
[1736121837830,0.2066747,98500.0,98499.0,0.00812]
[1736121838225,0.22233775,98500.0,98499.0,0.00812]
[1736121840625,0.07047705,98500.0,98499.0,0.00812]
[1736121844333,0.22233775,98500.0,98499.0,0.00812]
[1736121848042,0.07047705,98500.0,98499.0,0.00812]
[1736121850746,0.11985516,98500.0,98499.0,0.00812]
[1736121853744,0.30230783,98500.0,98499.0,0.00812]
[1736121855152,0.11985516,98500.0,98490.0,0.06497312]
[1736121855348,0.406498,98491.0,98490.0,0.06497312]
[1736121855548,0.0457,98488.0,98487.0,0.0484]
[1736121856648,0.0457,98488.0,98487.0,0.05429]
[1736121858351,0.0457,98488.0,98487.0,0.05529]
[1736121859055,0.05382,98488.0,98487.0,0.05529]
[1736121864358,0.2057936,98488.0,98487.0,0.05529]
[1736121865955,0.1285936,98488.0,98487.0,0.05529]
[1736121866144,0.1285936,98488.0,98487.0,0.07014046]
[1736121866145,0.1742936,98488.0,98487.0,0.07014046]
[1736121867158,0.0457,98488.0,98487.0,0.07014046]
[1736121867658,0.0457,98488.0,98487.0,0.05529]
[1736121871854,0.16745582,98488.0,98487.0,0.05529]
[1736121873163,0.0457,98488.0,98487.0,0.2989179]
[1736121874863,0.0457,98488.0,98487.0,0.2505179]
[1736121875962,0.16742677,98488.0,98487.0,0.00689]
[1736121878762,0.16742677,98488.0,98487.0,0.25049453]
[1736121880151,0.0457,98488.0,98487.0,0.25049453]
[1736121881368,0.0457,98488.0,98487.0,0.00689]
[1736121881966,0.05382,98488.0,98487.0,0.00689]
[1736121883965,0.06752526,98488.0,98487.0,0.00689]
[1736121884354,0.05382,98488.0,98487.0,0.00689]
[1736121896368,0.20598825,98488.0,98487.0,0.00689]
[1736121897068,0.20598825,98488.0,98486.0,9.3e-07]
[1736121897277,0.3608,98487.0,98486.0,9.3e-07]
[1736121898069,0.3608,98487.0,98481.0,9.3e-07]
[1736121898273,0.045701,98482.0,98481.0,9.3e-07]
[1736121899569,0.045701,98482.0,98475.0,0.00152324]
[1736121899570,0.045704,98476.0,98475.0,0.00152324]
[1736121899780,0.406504,98476.0,98475.0,0.00152324]
[1736121900787,0.55855653,98476.0,98475.0,0.00152324]
[1736121900989,0.55855653,98476.0,98475.0,0.00652324]
[1736121901286,0.55855653,98476.0,98475.0,0.00752324]
[1736121902389,0.45589214,98476.0,98475.0,0.00752324]
[1736121902581,0.04938814,98476.0,98475.0,0.01618631]
[1736121902786,0.04938814,98476.0,98475.0,0.00352324]
[1736121903189,0.04938814,98476.0,98475.0,0.00252324]
[1736121903392,0.05138814,98476.0,98475.0,0.00152324]
[1736121903980,0.18236833,98480.0,98475.0,0.00152324]
[1736121904185,0.09122549,98480.0,98479.0,0.045703]
[1736121905298,0.0457,98485.0,98477.0,0.30338429]
[1736121905791,0.0457,98485.0,98482.0,0.045701]
[1736121906691,0.0457,98485.0,98483.0,0.24333155]
[1736121907698,0.0457,98485.0,98483.0,0.28903255]
[1736121907990,0.09122549,98490.0,98484.0,0.29233155]
[1736121908290,0.09122549,98490.0,98489.0,0.3608]
[1736121908496,0.09122549,98490.0,98488.0,0.045698]
[1736121909191,0.045698,98491.0,98488.0,0.045698]
[1736121909783,0.045699,98487.0,98486.0,0.24333155]
[1736121910790,0.045699,98487.0,98485.0,0.28913155]
[1736121911787,0.045699,98487.0,98485.0,0.0458]
[1736121912890,0.045699,98487.0,98485.0,0.0468]
[1736121913790,0.045699,98487.0,98485.0,0.0925]
[1736121914595,0.045699,98487.0,98485.0,0.0915]
[1736121914796,0.09122549,98494.0,98492.0,0.045696]
[1736121915101,0.09122549,98494.0,98493.0,0.0469]
[1736121916101,0.045692,98503.0,98501.0,0.045692]
[1736121918295,0.047692,98503.0,98501.0,0.045692]
[1736121918806,0.002,98503.0,98501.0,0.045692]
[1736121920695,0.09122549,98514.0,98513.0,0.045687]
[1736121921900,0.09522549,98514.0,98513.0,0.045687]
[1736121922700,0.004,98514.0,98513.0,0.045687]
[1736121923205,0.004,98514.0,98513.0,0.046687]
[1736121925802,0.01212,98514.0,98513.0,0.046687]
[1736121926303,0.01212,98514.0,98513.0,0.001]
[1736121935307,0.01212,98514.0,98504.0,0.09901451]
[1736121935508,0.045691,98505.0,98504.0,0.09901451]
[1736121935709,0.045691,98505.0,98502.0,0.05882611]
[1736121936105,0.045691,98505.0,98503.0,0.045692]
[1736121936499,0.3608,98506.0,98503.0,0.045692]
[1736121936913,0.001,98505.0,98504.0,0.001]
[1736121937604,0.001,98505.0,98504.0,0.045693]
[1736121937804,0.003,98505.0,98504.0,0.045693]
[1736121938197,0.003,98505.0,98504.0,0.046693]
[1736121944018,0.01112,98505.0,98504.0,0.046693]
[1736121945619,0.10222847,98505.0,98504.0,0.046693]
[1736121947720,0.01112,98505.0,98504.0,0.046693]
[1736121950123,0.056813,98505.0,98504.0,0.046693]
[1736121950625,0.14792147,98505.0,98504.0,0.046693]
[1736121951920,0.056813,98505.0,98504.0,0.046693]
[1736121954824,0.17829096,98505.0,98504.0,0.046693]
[1736121956027,0.056813,98505.0,98504.0,0.046693]
[1736121957128,0.17829096,98505.0,98504.0,0.046693]
[1736121959527,0.056813,98505.0,98504.0,0.046693]
[1736121960024,0.056813,98505.0,98504.0,0.001]
[1736121962221,0.20885548,98505.0,98504.0,0.001]
[1736121963327,0.056813,98505.0,98504.0,0.001]
[1736121966023,0.20905911,98505.0,98504.0,0.001]
[1736121967440,0.056813,98505.0,98504.0,0.001]
[1736121971729,0.10618477,98505.0,98504.0,0.001]
[1736121972933,0.056813,98505.0,98504.0,0.001]
[1736121975838,0.10618486,98505.0,98504.0,0.001]
[1736121976938,0.20905572,98505.0,98504.0,0.001]
[1736121979435,0.10618492,98505.0,98504.0,0.001]
[1736121981240,0.056813,98505.0,98504.0,0.001]
[1736121982647,0.10618492,98505.0,98504.0,0.001]
[1736121983544,0.06049192,98505.0,98504.0,0.001]
[1736121983750,0.06049192,98505.0,98504.0,0.0471]
[1736121985444,0.06049192,98505.0,98504.0,0.4079]
[1736121985746,0.01112,98505.0,98504.0,0.42001721]
[1736121991052,0.01112,98505.0,98504.0,0.001]
[1736121995452,0.06049286,98505.0,98504.0,0.001]
[1736122000351,0.16323353,98505.0,98504.0,0.001]
[1736122001665,0.01112,98505.0,98504.0,0.1421]
[1736122006859,0.01112,98505.0,98504.0,0.3851874]
[1736122011865,0.01112,98505.0,98504.0,0.3361874]
[1736122012267,0.01112,98505.0,98504.0,0.0931]
[1736122013956,0.056812,98505.0,98504.0,0.0484]
[1736122021270,0.14806344,98505.0,98504.0,0.0484]
[1736122022772,0.14806344,98505.0,98504.0,0.23071741]
[1736122022974,0.14606344,98505.0,98504.0,0.23071741]
[1736122023283,0.14506344,98505.0,98504.0,0.23171741]
[1736122024179,0.053812,98505.0,98504.0,0.0494]
[1736122025285,0.053812,98505.0,98504.0,0.0484]
[1736122025578,0.053812,98505.0,98504.0,0.2914874]
[1736122026688,0.414612,98505.0,98504.0,0.2440874]
[1736122028380,0.414612,98505.0,98504.0,0.2430874]
[1736122029183,0.415612,98505.0,98504.0,0.2440874]
[1736122029381,0.415612,98505.0,98504.0,0.001]
[1736122029780,0.414612,98505.0,98504.0,0.001]
[1736122031391,0.045693,98503.0,98501.0,0.30338429]
[1736122031891,0.045693,98503.0,98501.0,0.34907829]
[1736122032480,0.13704084,98503.0,98501.0,0.34907829]
[1736122032689,0.00812,98502.0,98501.0,0.34907829]
[1736122032991,0.00812,98502.0,98501.0,0.35007829]
[1736122033491,0.00812,98502.0,98501.0,0.35107829]
[1736122033888,0.00812,98502.0,98501.0,0.32133521]
[1736122034194,0.00812,98502.0,98501.0,0.32233521]
[1736122035684,0.00812,98502.0,98501.0,0.32433521]
[1736122036390,0.00812,98502.0,98501.0,0.32133521]
[1736122037094,0.00812,98502.0,98501.0,0.32333521]
[1736122037993,0.00812,98502.0,98501.0,0.32433521]
[1736122039091,0.00812,98502.0,98501.0,0.32233521]
[1736122039688,0.00812,98502.0,98501.0,0.32433521]
[1736122043995,0.09134784,98503.0,98501.0,0.68513521]
[1736122044190,0.09134784,98503.0,98502.0,0.0935]
[1736122045396,0.0063,98503.0,98502.0,0.36814121]
[1736122045696,0.0063,98503.0,98502.0,0.37014121]
[1736122045892,0.0063,98503.0,98502.0,0.37214121]
[1736122048307,0.0063,98503.0,98502.0,0.73601005]
[1736122049402,0.0063,98503.0,98502.0,0.37214121]
[1736122050295,0.09134784,98516.0,98502.0,0.37214121]
[1736122050501,0.09134784,98516.0,98515.0,0.406488]
[1736122050897,0.00152291,98522.0,98521.0,0.045685]
[1736122051293,0.12326122,98522.0,98521.0,0.045685]
[1736122052198,0.12526122,98522.0,98521.0,0.045685]